Cogmind - Beta 13 @@@ ROGUE MODE // 2024.04.09 @ 20:44:41 Player: Olafz Result: Destroyed by H-61 Shepherd with Heavy Assault Cannon Performance ------------- Evolutions (2) 1000 Regions Visited (4) 800 Robots Destroyed (40) 200 Value Destroyed (1131) 1131 Prototype IDs (2) 40 Alien Tech Used (0) 0 Bonus (125) 125 TOTAL SCORE: 3296 Bonus ------- Follower Combat Kills 125 Cogmind --------- Core Integrity 0/550 Matter 173/300 Energy 4/100 System Corruption 0% Temperature Cool (0) Movement Core (100) Ox1 Location -8/Materials Parts ------- > --- POWER (2) -------- (None) > --- PROPULSION (2) --- (None) > --- UTILITY (4) ------ Large Storage Unit Advanced Weight Redist. System Signal Interpreter > --- WEAPON (3) ------- Scythe > --- INVENTORY (15) --- Nuclear Core Light Nuclear Core Advanced Treads Aluminum Leg Aluminum Leg Small Storage Unit Actuator Array Improved Light Armor Plating Improved Light Armor Plating Hacking Suite Hacking Suite System Shield Particle Gun Assault Rifle Peak State ------------ > --- POWER ------------ Light Nuclear Core Light Nuclear Core > --- PROPULSION ------- Improved Aluminum Leg Carbon-fiber Leg > --- UTILITY ---------- Cooling System Large Storage Unit Signal Interpreter Improved Light Armor Plating > --- WEAPON ----------- Particle Gun Heavy Assault Rifle Scythe > --- INVENTORY -------- Ion Engine Nuclear Core Light Nuclear Core Advanced Treads Aluminum Leg Aluminum Leg Small Storage Unit Actuator Array Actuator Array Improved Light Armor Plating Hacking Suite Hacking Suite System Shield Assault Rifle Missile Launcher [Rating: 28] Favorites ----------- Power Ion Engine Engine Ion Engine Power Core Nuclear Core Propulsion Aluminum Leg Leg Aluminum Leg Utility Cooling System Device Cooling System Storage Large Storage Unit Processor Signal Interpreter Protection Improved Light Armor Plating Weapon Particle Gun Energy Gun Particle Gun Ballistic Gun Assault Rifle Launcher Missile Launcher Slashing Weapon Scythe Build | -11 -10 -10 -9 -8 ------- Run | Yrd Mat Min Mat Mat Slots Evolved 4 | . . . 2 2 Power 1 | . . . . 1 Propulsion . | . . . . . Utility 2 | . . . 2 . Weapon 1 | . . . . 1 Parts Attached 28 | . 13 4 4 7 Power 7 | . 3 1 . 3 Engine 3 | . 3 . . . Core 4 | . . 1 . 3 Reactor . | . . . . . Propulsion 7 | . 4 2 . 1 Treads . | . . . . . Leg 7 | . 4 2 . 1 Wheel . | . . . . . Hover . | . . . . . Flight . | . . . . . Utility 6 | . 2 . 3 1 Device 2 | . 1 . . 1 Storage 1 | . 1 . . . Processor 1 | . . . 1 . Hackware . | . . . . . Protection 2 | . . . 2 . Artifact . | . . . . . Weapon 8 | . 4 1 1 2 Energy Gun 4 | . 3 1 . . Energy Cannon . | . . . . . Ballistic Gun 2 | . 1 . 1 . Ballistic Cannon . | . . . . . Launcher 1 | . . . . 1 Special Weapon . | . . . . . Impact Weapon . | . . . . . Slashing Weapon 1 | . . . . 1 Piercing Weapon . | . . . . . Special Melee Weapon . | . . . . . Unidentified Prototypes . | . . . . . Parts Lost 9 | . 2 . . 7 Power 2 | . . . . 2 Propulsion 2 | . . . . 2 Utility 1 | . . . . 1 Weapon 4 | . 2 . . 2 Highest Loss Streak 7 | . 1 . . 7 To Critical Strikes . | . . . . . Average Slot Usage (%) 96 | . 97 100 90 91 Engine 7 | . 14 3 . . Core 6 | . . 10 11 16 Leg 25 | . 28 28 22 15 Device 12 | . 12 14 11 11 Storage 12 | . 14 14 11 9 Processor 2 | . . . 6 9 Protection 1 | . . . 6 6 Energy Gun 17 | . 24 14 11 6 Ballistic Gun 6 | . 2 14 11 7 Slashing Weapon 1 | . . . . 9 Naked Turns . | . . . . . Heaviest Build 45 | 14 33 34 38 45 Greatest Support 37 | 20 20 25 25 37 Greatest Overweight (x) 2 | . 1 1 1 2 Average Overweight (x) . | . . 1 1 . Largest Inventory Capacity 15 | . 15 15 15 15 Average Capacity 13 | . 11 15 15 15 Most Carried 15 | . 15 15 15 15 Average Carried 11 | . 8 12 13 14 Final Capacity 15 | 8 15 15 15 15 Final Carried 15 | 6 15 13 14 14 Class Distribution -------------------- 90% | Mutant 9% | Scavenger-Mutant Dominant Class ---------------- Mutant | -10/Materials Mutant | -10/Mines Mutant | -9/Materials Mutant | -8/Materials Resources | -11 -10 -10 -9 -8 ----------- Run | Yrd Mat Min Mat Mat Matter Collected 573 | 181 162 36 135 59 Remotely . | . . . . . Salvage Created 1209 | . 772 144 90 203 Parts 68 | . 49 6 6 7 Haulers Intercepted 2 | . 1 . 1 . Recyclers Shooed . | . . . . . Parts Field Recycled . | . . . . . Retrieved Matter . | . . . . . Parts Self-Destructed . | . . . . . Prevented . | . . . . . Kills | -11 -10 -10 -9 -8 ------- Run | Yrd Mat Min Mat Mat Combat Hostiles Destroyed 30 | . 21 4 . 5 Guns 26 | . 21 4 . 1 AOE 4 | . . . . 4 Classes Destroyed 9 | . 6 . . 3 Worker 1 | . 1 . . . Builder 2 | . . . . 2 Hauler 2 | . 1 . 1 . Operator 2 | . 2 . . . Watcher 3 | . 1 . 2 . Swarmer 6 | . 5 1 . . Grunt 22 | . 16 3 . 3 Sentry 1 | . . . . 1 Hunter 1 | . . . . 1 Best Kill Streak 6 | . 5 2 2 6 Combat Bots Only 4 | . 3 2 . 4 Max Kills in Single Turn 3 | . 2 1 1 3 Gunslinging 1 | . 1 . . . Exploded 1 | . . . . 1 Melee . | . . . . . Uniques/NPCs Destroyed . | . . . . . Combat | -11 -10 -10 -9 -8 -------- Run | Yrd Mat Min Mat Mat Hostile Shots Fired 238 | . 125 10 . 103 Missed 71 | . 36 5 . 30 Damage Taken 2315 | . 939 59 . 1317 Core 807 | . 192 34 . 581 Absorbed by Shields . | . . . . . Core Remaining (%) 69 | 100 . 9 100 . Volleys Fired 133 | . 82 8 16 27 Largest 2 | . 2 2 2 2 Hottest 130 | . 130 85 88 88 Shots Fired 225 | . 151 15 27 32 Gun 219 | . 151 15 27 26 Cannon . | . . . . . Launcher 6 | . . . . 6 Special . | . . . . . Kinetic 59 | . 14 8 16 21 Thermal 160 | . 137 7 11 5 Explosive 6 | . . . . 6 Electromagnetic . | . . . . . Robot Hit Streak 9 | . 9 5 4 4 Robot Miss Streak 6 | . 4 2 5 6 Penetration Max . | . . . . . Secondary Targets 5 | . 5 . . . Max Gunslinging Chain 1 | . 1 . . . Shots Hit Robots 123 | . 91 7 13 12 Core Hits 58 | . 36 6 3 13 Critical Kills 1 | . 1 . . . Critical Parts Destroyed . | . . . . . Critical Strikes 6 | . 6 . . . Burn 5 | . 5 . . . Destroy 1 | . 1 . . . Melee Attacks 1 | . . . . 1 Impact . | . . . . . Slashing 1 | . . . . 1 Piercing . | . . . . . Sneak Attacks . | . . . . . Combat Hostiles . | . . . . . Follow-up Attacks . | . . . . . Damage Inflicted 2370 | . 1400 100 214 656 Guns 1886 | . 1400 100 214 172 Cannons . | . . . . . Explosions 484 | . . . . 484 Melee . | . . . . . Ramming . | . . . . . Kinetic 383 | . 97 25 123 138 Thermal 1503 | . 1303 75 91 34 Explosive 484 | . . . . 484 Electromagnetic . | . . . . . Impact . | . . . . . Slashing . | . . . . . Piercing . | . . . . . Highest Corruption . | . . . . . Average Corruption . | . . . . . Corruption Purged . | . . . . . Corruption Blocked . | . . . . . Overload Shots . | . . . . . Overflow Damage . | . . . . . Projectiles . | . . . . . Explosions . | . . . . . Melee . | . . . . . Knockbacks . | . . . . . Impact . | . . . . . Kinetic . | . . . . . Secondary . | . . . . . Self-Inflicted Damage 36 | . . . . 36 Shots 1 | . . . . 1 Rammed . | . . . . . Targets Rammed . | . . . . . Kicked . | . . . . . Crushed . | . . . . . Highest Temperature 96 | . 96 . . 19 Average Temperature 23 | . 23 . . 8 Received Heat Transfer 885 | . 426 18 . 441 Siege Activations . | . . . . . Robots Corrupted . | . . . . . Combat Hostiles . | . . . . . Parts Fried . | . . . . . Impact Corruptions . | . . . . . Robots Melted . | . . . . . Combat Hostiles . | . . . . . Parts Melted 6 | . 5 . 1 . Heat Transferred 3959 | . 3478 185 222 74 Parts Sabotaged . | . . . . . Parts Stolen . | . . . . . Parts Stripped . | . . . . . Power Chain Reactions . | . . . . . Alert | -11 -10 -10 -9 -8 ------- Run | Yrd Mat Min Mat Mat Peak Influence 293 | . 293 163 127 244 Initial 51 | . . 27 . 51 Average 97 | . 113 61 83 106 Maximum Alert Level 1 | . 1 . . 1 Low Security (%) 87 | . 75 100 100 95 Level 1 12 | . 24 . . 4 Level 2 . | . . . . . Level 3 . | . . . . . Level 4 . | . . . . . Level 5 . | . . . . . High Security . | . . . . . Max Security . | . . . . . Squads Dispatched 8 | . 6 . . 2 Investigation 4 | . 3 . . 1 Extermination . | . . . . . Reinforcement 3 | . 3 . . . Assault . | . . . . . Garrison 1 | . . . . 1 Intercept . | . . . . . Searches Triggered . | . . . . . Construction Impeded . | . . . . . Haulers Reinforced . | . . . . . Active Scanning Responses . | . . . . . Cargo Convoy Interrupts . | . . . . . Stealth | -11 -10 -10 -9 -8 --------- Run | Yrd Mat Min Mat Mat Distress Signals 5 | . 2 . 2 1 Communications Jammed . | . . . . . Distress Signals . | . . . . . Times Spotted 55 | . 29 8 9 9 Peak Tracking Total 6 | . 4 3 4 6 Tactical Retreats 1 | . . . 1 . Traps | -11 -10 -10 -9 -8 ------- Run | Yrd Mat Min Mat Mat Traps Triggered 2 | . 1 . . 1 Indirectly . | . . . . . Trap Hack Attempts . | . . . . . Triggered . | . . . . . Disarmed . | . . . . . Reprogrammed . | . . . . . Reused . | . . . . . Traps Extracted . | . . . . . Installed . | . . . . . Triggered . | . . . . . Machines | -11 -10 -10 -9 -8 ---------- Run | Yrd Mat Min Mat Mat Machines Disabled 5 | . 4 . . 1 Max in Single Turn 1 | . 1 . . 1 Machines Repaired . | . . . . . Machines Dismantled . | . . . . . Machines Sabotaged . | . . . . . Overloaded Fab Kills . | . . . . . Hacking | -11 -10 -10 -9 -8 --------- Run | Yrd Mat Min Mat Mat Machines Accessed 7 | . 4 1 2 . Terminals 6 | . 4 . 2 . Fabricators . | . . . . . Repair Stations . | . . . . . Recycling Units . | . . . . . Scanalyzers . | . . . . . Garrison Access . | . . . . . Total Hacks 22 | . 14 1 7 . Successful 13 | . 8 1 4 . Failed 9 | . 6 . 3 . Catastrophic 1 | . . . 1 . Database Lockouts . | . . . . . Manual 17 | . 10 . 7 . Terminals 21 | . 14 . 7 . Fabricators . | . . . . . Repair Stations . | . . . . . Recycling Units . | . . . . . Scanalyzers . | . . . . . Garrison Access . | . . . . . Terminal Hacks 6 | . 4 1 1 . Prototype ID Bank 1 | . 1 . . . Open Door 1 | . . 1 . . Terminal Index 1 | . . . 1 . Alert Level 1 | . 1 . . . Unreport Threat 2 | . 2 . . . Fabricator Hacks . | . . . . . Repair Station Hacks . | . . . . . Recycling Unit Hacks . | . . . . . Scanalyzer . | . . . . . Garrison Access Hacks . | . . . . . Unauthorized Hacks 7 | . 4 . 3 . Terminals 7 | . 4 . 3 . Botnet 5 | . 3 . 2 . Operators 2 | . 1 . 1 . Fabricators . | . . . . . Repair Stations . | . . . . . Recycling Units . | . . . . . Scanalyzers . | . . . . . Garrison Access . | . . . . . Data Cores Recovered . | . . . . . Used . | . . . . . Hacking Detections 6 | . 4 . 2 . Full Trace Events 3 | . 3 . . . Feedback Events . | . . . . . Feedback Blocked . | . . . . . Robot Schematics Acquired . | . . . . . Robots Built . | . . . . . Authchips . | . . . . . Time . | . . . . . Total Robot Build Rating . | . . . . . Part Schematics Acquired . | . . . . . Parts Built . | . . . . . Authchips . | . . . . . Time . | . . . . . Total Part Build Rating . | . . . . . Parts Repaired . | . . . . . Time . | . . . . . Parts Recycled . | . . . . . Recycled Matter . | . . . . . Retrieved Matter . | . . . . . Retrieved Components . | . . . . . Parts Scanalyzed . | . . . . . Part Schematics Acquired . | . . . . . Parts Damaged . | . . . . . Bothacking | -11 -10 -10 -9 -8 ------------ Run | Yrd Mat Min Mat Mat Used RIF Installer . | . . . . . Robots Hacked . | . . . . . Non-combat . | . . . . . Combat . | . . . . . Robot Hacks Applied . | . . . . . Relay Couplers Released . | . . . . . Fabnet Peak Effective % . | . . . . . Robots Rewired . | . . . . . Allies Hacked . | . . . . . Hacks Repelled . | . . . . . Allies | -11 -10 -10 -9 -8 -------- Run | Yrd Mat Min Mat Mat Total Allies 1 | . . 1 . . Largest Group 1 | . . 1 1 . Highest-Rated Group 31 | . . 31 31 . Highest-Rated Ally 31 | . . 31 31 . Total Orders . | . . . . . Ally Attacks 25 | . . 6 19 . Total Damage 292 | . . 64 228 . Kills 5 | . . 1 4 . Allies Corrupted . | . . . . . Allies Melted . | . . . . . Intel | -11 -10 -10 -9 -8 ------- Run | Yrd Mat Min Mat Mat Robot Analysis Total . | . . . . . Derelict Logs Recovered 2 | . . 2 . . Drone Launches . | . . . . . Drone Recoveries . | . . . . . Exploration | -11 -10 -10 -9 -8 ------------- Run | Yrd Mat Min Mat Mat Turns Passed 2143 | . 1039 439 316 349 Spaces Moved 1033 | 1 530 211 136 155 Core 15 | . . . . 15 Treads . | . . . . . Legs 1018 | 1 530 211 136 140 Wheels . | . . . . . Hover . | . . . . . Flight . | . . . . . Fastest Speed 100 | 120 120 190 190 100 Average Speed 164 | 120 145 190 190 172 Slowest Speed 190 | 120 190 190 190 190 Overloaded Moves . | . . . . . Propulsion Burnouts . | . . . . . Robots Hopped . | . . . . . Cave-ins Triggered . | . . . . . Exploration Rate (%) 36 | 2 90 50 19 21 Regions Visited 4 Branch Regions 1 Pre-discovered Areas 2 | . . 2 . . Known Exits Taken 1 | . . . 1 . Unknown Exits Taken 3 | 1 1 1 . . Scrap Searched . | . . . . . Spaces Dug . | . . . . . Terrain Destroyed 48 | . . . . 48 Melee . | . . . . . Projectile . | . . . . . AOE 48 | . . . . 48 Terrain Rammed . | . . . . . Walls Destroyed . | . . . . . Machines Disabled . | . . . . . Actions | -11 -10 -10 -9 -8 --------- Run | Yrd Mat Min Mat Mat Total 1257 | . 647 239 167 204 Wait 20 | . 8 1 6 5 Move 1029 | . 529 210 135 155 Hop . | . . . . . Pick Up 18 | . 7 5 3 3 Fast Attach 5 | . 3 . 1 1 Attach 6 | . 2 . 1 3 Detach 4 | . 2 . . 2 Swap 17 | . 8 4 2 3 Drop 24 | . 6 11 3 4 Fire 133 | . 82 8 16 27 Melee 1 | . . . . 1 Ram . | . . . . . Kick . | . . . . . Crush . | . . . . . Escape Stasis . | . . . . . Rewire . | . . . . . Trap . | . . . . . Miscellaneous . | . . . . . Route ------- -11/Scrapyard -10/Materials (discovered 3 exits: *Mat x2 / *Min) -10/Mines -9/Materials -8/Materials History --------- Turn | Location | Event 1 | -11/Scrapyard | Discovered new exit (range 0) 1 | -11/Scrapyard | Entered Materials 218 | -10/Materials | Discovered new exit (range 3) 303 | -10/Materials | Build established: Mutant 784 | -10/Materials | Discovered new exit (range 11) 876 | -10/Materials | Discovered new exit (range 16) 965 | -10/Materials | Core integrity fell below 50% 1040 | -10/Materials | Entered Mines 1046 | -10/Mines | Escorted by a lone wolf Derelict 1066 | -10/Mines | Learned location of Storage (-7) 1100 | -10/Mines | Learned location of Zion (-7) 1147 | -10/Mines | Met a Derelict who couldn't figure out how to use a Trap Extractor 1248 | -10/Mines | Received a Rocket Launcher from a helpful Derelict 1279 | -10/Mines | Learned Materials stockpile data 1326 | -10/Mines | Discovered new exit (range 8) 1383 | -10/Mines | Core integrity fell below 20% 1479 | -10/Mines | Entered Materials 1479 | -9/Materials | Accompanied by 1 ally 1479 | -9/Materials | Evolved 2 slots: Utility x2 1755 | -9/Materials | Discovered new exit (range 16) 1793 | -9/Materials | Identified exit to Materials 1795 | -9/Materials | Entered another Materials area 1795 | -8/Materials | Evolved 2 slots: Power x1, Weapon x1 2074 | -8/Materials | Garrison activated, responded to threat 2123 | -8/Materials | Core integrity fell below 50% 2134 | -8/Materials | Core integrity fell below 20% 2144 | -8/Materials | Destroyed by H-61 Shepherd with Heavy Assault Cannon Last Messages --------------- U-05 Engineer destroyed. G-47 Trooper destroyed. Knocked back. Penetrated by Slug. Acquired 7 matter. The unstable cave ceiling collapses. T-07 Excavator is excavating. Knocked back. Acquired 1 matter. H-55 Commando destroyed. Missile Launcher destroyed. The unstable cave ceiling collapses. T-07 Excavator is excavating. Acquired 7 matter. Slug penetrates Wall. The unstable cave ceiling collapses. Knocked back. T-07 Excavator is excavating. The unstable cave ceiling collapses. T-07 Excavator is excavating. Map ----- +----------------------------------------------------+ | | | | | | | | | | | | | ?????????????????????????????????????????????##### | | ??????????????????????????????###########???? | | ??????????????????????????????# #???#* | | ??????????????????????????????# """ """ #???# | | ??????????????????????????????# """ """ #???# | | ??????????????????????????????# """ """ ##### []] | | ??????????????????????????????# """ """ # + [] | | ??????????????????????????????# # ## [] | | ??????????????????????????????# ! !! + ## | | ??????????????????????????????# # ## [ | | ??????????????????????????????########### ## | | ?????????????????????#######???????????# ##+### | | ????????????????????## # #;##?##???????# | | ????????????????????# ## #???????# [ | | ????????????????????# % ; #????????# # ^[[ | | ????????????????????# ##?############# [[ | | ????????????????????## #?# # [[ | | ????????????????????# ## / | | ???????????????????## # # | | ?????????????????###; =@ t # | | ??????????? u % = ## ## | | ?????????? H = % m ## # | | ??????????? ## + | | ??????????? ######### ############ # | | ????????????+?????????? ?????????# # | | ??????????????????????? # " #????????# # | | ?????????????????????? t + "G" =#????????# ## | | ?????????????????????? # # " " #????????# ## | | ?????????????????????##### # !#????????+ # | | ?????????????????????????# ######??????????# + | | ?????????????????????????##+##???????????????# # | | ??????????????????????????????????????????????? # | | ????????????????????????????????????????????????+ | | ????????????????????????????????????????????????# | | ????????????????????????????????????????????????## | | ????????????????????????????????????????????????# | | ????????????????????????????????????????????????# | | ????????????????????????????????????????????????# | | ????????????????????????????????????????????????# | | ????????????????????????????????????????????????# | | ????????????????????????????????????????????????# | | ??????????????????????????????????????????????? | | ?????????????????????????????????????????????? # | | ?????????????????????????????????????????????#### | +----------------------------------------------------+ Best States ------------- Heat Dissipation 53 Energy Generation 23 Energy Capacity 300 Matter Stores 300 Matter Capacity 300 Sight Range 16 Terrain Scan Density 10 Additional Mass Support 9 Armor Coverage 150 Evasion (%) 55 Item Schematics ----------------- None Robot Schematics ------------------ None Fabricated ------------ Nothing Alien Tech Used ----------------- None Achievements -------------- None Challenges ------------ None Game ------ Seed ReinforcedShrapnelPurifier Manual? 0 Play Time 00:24:45 Cumulative 39.2 hours Start 2024.04.09 @ 20:19:28 End 2024.04.09 @ 20:44:41 Sessions 1 Manual Loads 0 Difficulty Rogue Special Mode None Game No. 106 Rogue 104 Adventurer 2 Explorer 0 Win Type - Total 0 Types 0/0/0/0/0/0/0/0/0 Lore% 28 Gallery% 35 Achievement% 26 Wizard Run 0 Options --------- Layout 2 ASCII 0 Keyboard 1 Movement Numpad Keybinds 1 Fullscreen 2 Font 24/Smallcaps Map View 50x44 Zoom Use 0% Tactical HUD 1 Map Filters NONE Filters NONE Steam 1 RUN: 6d1dfcff-30ea-4d9f-b968-a6d7bb487cec